bitfinex-derivatives/quotes_ETHF0:USTF0_20250504
["timestamp","ask_amount","ask_price","bid_price","bid_amount"]
[1746401878303,4.79135,1812.4,1812.3,3.98057]
[1746401882008,3.688,1812.4,1812.3,3.98057]
[1746401882205,4.79134,1812.4,1812.3,3.98057]
[1746401885008,1.1034,1812.3,1812.2,1.10343]
[1746401885215,3.7531,1812.3,1812.2,1.10343]
[1746401885508,1.10346,1812.2,1812.1,3.2078]
[1746401885711,9.24486,1812.2,1812.1,3.2078]
[1746401885902,1.10352,1812.1,1812.0,2.8011]
[1746401886104,1.1037,1811.9,1811.8,1.10366]
[1746401886410,1.1037,1811.9,1811.8,3.94386]
[1746401887203,4.7917,1811.9,1811.8,3.94386]
[1746401887409,4.7917,1811.9,1811.7,3.2078]
[1746401887711,1.1037,1811.8,1811.7,4.31153]
[1746401887919,1.1037,1811.8,1811.7,7.15173]
[1746401888218,4.7917,1811.8,1811.7,7.15173]
[1746401888714,3.688,1811.8,1811.7,7.15173]
[1746401890914,3.688,1811.8,1811.7,9.84143]
[1746401891111,1.10357,1812.1,1811.7,9.84143]
[1746401891306,2.8326,1812.1,1811.8,2.9283]
[1746401891514,1.10361,1812.0,1811.9,1.1036]
[1746401891914,1.1037,1811.8,1811.7,4.31153]
[1746401892214,4.7917,1811.8,1811.7,7.23983]
[1746401892608,1.10376,1811.7,1811.6,1.1038]
[1746401892915,1.10383,1811.6,1811.5,7.01617]
[1746401893114,4.79183,1811.6,1811.5,2.7045]
[1746401893313,7.67223,1811.6,1811.5,3.80839]
[1746401893509,12.53578,1811.6,1811.2,3.81742]
[1746401893714,2.8804,1811.5,1811.3,1.104]
[1746401893910,1.104,1811.4,1811.3,1.104]
[1746401894111,1.104,1811.4,1811.3,3.8085]
[1746401894315,4.792,1811.4,1811.3,3.8085]
[1746401896120,4.792,1811.4,1811.3,2.7045]
[1746401896317,6.8958,1811.4,1811.1,17.79722208]
[1746401896519,1.10407,1811.2,1811.1,21.64921208]
[1746401896912,3.84007,1811.2,1811.1,7.05979]
[1746401897116,7.52807,1811.2,1811.1,7.05979]
[1746401897315,7.52807,1811.2,1811.1,3.85199]
[1746401898608,3.688,1811.2,1811.1,3.85199]
[1746401898808,3.688,1811.2,1811.1,7.05979]
[1746401899121,1.10396,1811.4,1811.3,1.10399]
[1746401899618,6.8782,1811.5,1811.2,2.7065]
[1746401899821,1.10396,1811.4,1811.3,1.10399]
[1746401900022,6.8782,1811.5,1811.2,2.7065]
[1746401900223,3.688,1811.4,1811.2,2.7065]
[1746401900420,3.688,1811.4,1811.3,1.10398]
[1746401901215,3.688,1811.4,1811.3,3.81278]
[1746401901425,3.688,1811.4,1811.3,8.81278]
[1746401901724,1.10372,1811.8,1811.7,1.10372]
[1746401902222,4.79172,1811.8,1811.7,1.10372]
[1746401902523,3.688,1811.8,1811.7,1.10372]
[1746401902822,3.688,1811.8,1811.7,3.81252]
[1746401903223,4.7917,1811.8,1811.7,3.81252]
[1746401903621,3.688,1811.8,1811.7,3.81252]
[1746401905223,6.57806,1811.9,1811.8,1.1037]
[1746401905424,6.57806,1811.9,1811.8,3.67360958]
[1746401905720,1.1037,1811.8,1811.7,1.10374]
[1746401905921,1.1038,1811.7,1811.6,3.68139]
[1746401906118,1.10387,1811.6,1811.5,1.10387]
[1746401906323,1.10387,1811.6,1811.5,3.68147]
[1746401906524,7.61931,1811.7,1811.6,1.10383]
[1746401906720,7.61931,1811.7,1811.6,3.68143]
[1746401906925,3.688,1811.7,1811.6,3.68143]
[1746401907130,3.688,1811.8,1811.7,1.10376]
[1746401907325,1.10376,1811.7,1811.6,3.68136]
[1746401907526,1.10376,1811.7,1811.6,2.5776]
[1746401907726,7.08366,1811.7,1811.6,2.5776]
[1746401908129,10.77166,1811.7,1811.6,2.5776]
[1746401908322,10.77166,1811.7,1811.6,3.68143]
[1746401908932,10.77166,1811.7,1811.6,2.5776]
[1746401911933,10.77166,1811.7,1811.5,1.10387]
[1746401911934,1.10383,1811.6,1811.5,1.10387]
[1746401912235,7.53653,1811.6,1811.5,3.93527]
[1746401916847,3.688,1811.6,1811.5,3.93527]
[1746401917143,1.10375,1811.8,1811.7,1.10376]
[1746401917534,1.10378,1811.7,1811.6,1.10378]
[1746401917931,1.10372,1811.8,1811.7,1.10372]
[1746401918128,4.79172,1811.8,1811.7,1.10372]
[1746401918328,1.10377,1811.7,1811.6,1.10378]
[1746401919637,3.67154,1811.8,1811.7,1.10376]
[1746401920145,7.35954,1811.8,1811.7,1.10376]
[1746401921234,1.10378,1811.7,1811.6,1.10378]
[1746401921944,1.10386,1811.6,1811.5,1.10384]
[1746401922540,3.89656,1811.6,1811.5,1.10384]
[1746401923140,7.58456,1811.6,1811.5,1.10384]
[1746401923940,1.10389,1811.5,1811.4,1.10392]
[1746401924242,3.688,1811.5,1811.4,1.10395]
[1746401924444,4.79189,1811.5,1811.4,1.10395]
[1746401925748,1.10395,1811.4,1811.3,8.35476]
[1746401925943,1.10406,1811.3,1811.2,1.10403]
[1746401926746,7.4602,1811.4,1811.3,1.10401]
[1746401927947,1.10406,1811.3,1811.2,1.10403]
[1746401930148,4.79206,1811.3,1811.2,1.10403]
[1746401930447,1.10407,1811.2,1811.1,6.51958]
[1746401930837,1.10407,1811.2,1811.0,44.831]
[1746401931040,3.84027,1811.2,1811.1,1.10413]
[1746401931244,13.2165,1811.2,1810.9,11.02288082]
[1746401931448,4.31199,1811.0,1810.9,11.02288082]
[1746401932147,7.99999,1811.0,1810.9,11.02288082]
[1746401936845,1.10437,1810.7,1810.6,1.10439]
[1746401937045,4.31216,1810.8,1810.7,1.10431]
[1746401937440,1.10436,1810.8,1810.7,1.10431]
[1746401937650,1.10436,1810.8,1810.7,3.89461]
[1746401938247,4.79236,1810.8,1810.7,3.89461]
[1746401941645,7.60496,1810.8,1810.7,3.89461]
[1746401941843,7.60496,1810.8,1810.7,2.7903]
[1746401943550,7.60496,1810.8,1810.7,3.89467]
[1746401944246,7.60496,1810.8,1810.7,2.7903]
[1746401944555,7.60496,1810.8,1810.7,3.89478]
[1746401944853,7.60496,1810.8,1810.7,2.7903]
[1746401945450,1.10455,1810.6,1810.5,9.17099]
[1746401945851,1.10455,1810.6,1810.5,49.97099]
[1746401946148,1.10455,1810.6,1810.5,2.7096]
[1746401946149,7.47285,1810.6,1810.5,2.7096]
[1746401946351,1.10467,1810.5,1810.4,1.10467]
[1746401946544,1.10467,1810.5,1810.4,3.81427]
[1746401946545,6.60447,1810.5,1810.4,3.81427]
[1746401947046,10.29247,1810.5,1810.4,3.81427]
[1746401948458,1.10473,1810.3,1810.2,1.10479]
[1746401948752,1.10473,1810.3,1810.2,3.92389]
[1746401949254,4.79273,1810.3,1810.2,3.92389]
[1746401951157,3.688,1810.3,1810.2,3.92389]
[1746401951350,4.31236,1810.6,1810.5,1.10461]
[1746401951654,3.2078,1810.6,1810.5,1.10461]
[1746401951856,4.31235,1810.6,1810.5,1.10461]
[1746401952353,8.00035,1810.6,1810.5,3.75401]
[1746401952758,6.8958,1810.6,1810.5,3.75401]
[1746401953458,3.688,1810.6,1810.5,3.75401]
[1746401955454,4.79255,1810.6,1810.5,3.75401]
[1746401955857,3.688,1810.6,1810.5,3.75401]
[1746401956557,4.79255,1810.6,1810.5,3.75401]
[1746401958557,1.10473,1810.4,1810.3,1.10469]
[1746401958761,1.10473,1810.4,1810.3,2.5777]
[1746401959062,4.79273,1810.4,1810.3,3.68243]
[1746401960265,1.10479,1810.3,1810.2,1.10477]
[1746401960561,1.10479,1810.3,1810.2,3.80959]
[1746401960865,3.71429,1810.3,1810.2,3.80959]
[1746401961064,7.40229,1810.3,1810.2,3.80959]
[1746401962464,3.688,1810.3,1810.2,3.80959]
[1746401962662,4.79273,1810.3,1810.2,3.80959]
[1746401963253,7.39083,1810.3,1810.2,3.80959]
[1746401964666,3.688,1810.3,1810.2,3.80959]
[1746401965053,3.2078,1811.1,1810.2,14.9326]
[1746401965258,9.49463162,1811.6,1811.2,1.10418]
[1746401965259,4.7807638,1811.3,1811.2,1.10418]
[1746401965459,3.6766338,1811.3,1811.2,1.10418]
[1746401965759,7.5398538,1811.3,1811.2,1.10418]
[1746401966262,13.3315338,1811.3,1811.1,1.1042]
[1746401966565,1.1043,1811.0,1810.9,1.10435]
[1746401966769,1.10434,1811.0,1810.9,1.10436]
[1746401967160,10.32064,1811.0,1810.9,1.10436]
[1746401967969,9.2163,1811.0,1810.9,1.10436]
[1746401968669,10.3206,1811.0,1810.9,1.10436]
[1746401968970,9.2163,1811.0,1810.9,1.10436]
[1746401971479,10.3206,1811.0,1810.9,1.10436]
[1746401971673,1.10454,1810.7,1810.6,1.10452]
[1746401971875,1.10455,1810.6,1810.5,3.84789]
[1746401972176,8.9359,1810.6,1810.5,3.84789]
[1746401972378,11.6253,1810.6,1810.5,3.84789]
[1746401972580,1.10461,1810.5,1810.4,7.35024118]
[1746401972774,6.97191,1810.5,1810.4,8.45491118]
[1746401973085,10.65991,1810.5,1810.4,8.45491118]
[1746401973972,9.5553,1810.5,1810.4,8.45491118]
[1746401974174,10.65991,1810.5,1810.4,8.45491118]
[1746401974378,9.5553,1810.5,1810.4,8.45491118]
[1746401974776,9.5553,1810.5,1810.4,1.10467]
[1746401974977,9.5553,1810.5,1810.4,3.88667]
[1746401975179,10.65991,1810.5,1810.4,3.88667]
[1746401975779,7.45211,1810.5,1810.4,3.88667]
[1746401977278,6.3475,1810.5,1810.4,3.88667]
[1746401977671,7.45211,1810.5,1810.4,3.88667]
[1746401978280,7.45211,1810.5,1810.4,2.782]
[1746401978476,7.45211,1810.5,1810.4,3.88667]
[1746401978669,6.3475,1810.5,1810.2,5.40604]
[1746401978874,7.45217,1810.5,1810.4,1.10467]
[1746401979669,10.65997,1810.5,1810.4,1.10467]
[1746401980573,1.10467,1810.4,1810.3,3.73049]
[1746401980774,3.72537,1810.4,1810.3,3.73049]
[1746401981075,7.41337,1810.4,1810.3,3.73053]
[1746401981278,1.10478,1810.3,1810.2,1.10474]
[1746401981471,3.72548,1810.3,1810.2,3.81154]
[1746401982182,7.41348,1810.3,1810.2,3.81154]
[1746401982981,6.3087,1810.3,1810.2,3.81154]
[1746401983180,3.688,1810.3,1810.2,3.81154]
[1746401983380,4.79273,1810.3,1810.2,3.81154]
[1746401983580,8.00053,1810.3,1810.2,3.81154]
[1746401983780,4.79273,1810.3,1810.2,2.7068]
[1746401983983,3.688,1810.3,1810.2,3.81159]
[1746401984281,4.79273,1810.3,1810.2,3.81159]
[1746401984584,3.688,1810.3,1810.2,3.81159]
[1746401985086,4.79273,1810.3,1810.2,3.81159]
[1746401985782,6.8958,1810.3,1810.1,7.35024118]
[1746401986082,9.30509,1810.2,1810.1,7.35024118]
[1746401986481,1.10485,1810.1,1810.0,7.309122]
[1746401986680,7.09325,1810.1,1810.0,7.309122]
[1746401986978,12.09325,1810.1,1810.0,5.814362]
[1746401987183,15.78125,1810.1,1810.0,5.814362]
[1746401987380,15.78125,1810.1,1809.8,5.814362]
[1746401987381,1.10497,1809.9,1809.8,5.814362]
[1746401987580,4.31277,1809.9,1809.8,5.814362]
[1746401987985,7.09337,1809.9,1809.8,5.814362]
[1746401988180,10.78137,1809.9,1809.8,5.814362]
[1746401989686,10.78137,1809.9,1809.8,6.919392]
[1746401989990,6.8958,1809.9,1809.8,9.590692]
[1746401990186,3.688,1809.9,1809.8,14.590692]
[1746401991194,2.615,1810.4,1810.3,1.10473]
[1746401991195,3.2078,1810.4,1810.3,1.10473]
[1746401991490,3.2078,1810.4,1810.1,2.76204]
[1746401991491,12.95188483,1810.5,1810.4,1.10467]
[1746401991691,7.34961297,1810.5,1810.4,1.10467]
[1746401992191,11.03761297,1810.5,1810.4,1.10467]
[1746401993996,1.10467,1810.4,1810.3,3.77601]
[1746401994195,4.31247,1810.4,1810.2,6.50145]
[1746401994397,7.00737,1810.4,1810.2,6.50145]
[1746401994596,7.00737,1810.4,1810.3,1.10473]
[1746401994795,3.2078,1810.4,1810.3,1.10473]
[1746401995200,3.2078,1810.4,1810.3,6.10473]
[1746401995601,3.2078,1810.4,1810.3,1.10473]
[1746401996203,1.10455,1810.6,1810.5,1.10461]
[1746401996393,1.10455,1810.6,1810.4,1.10463]
[1746401996900,7.2138,1810.9,1810.4,3.2078]
[1746401997099,6.8958,1810.6,1810.3,2.76179]
[1746401997396,6.8958,1810.6,1810.2,49.4045]
[1746401997397,1.10473,1810.3,1810.2,5.3967]
[1746401997593,5.96949,1810.4,1810.0,1.10489]
[1746401997793,2.7991,1810.3,1810.0,1.10489]
[1746401998100,1.10485,1810.1,1809.9,41.90493]
[1746401998301,1.10482,1810.2,1809.9,40.8]
[1746401998500,1.10482,1810.2,1809.9,41.1735237]
[1746401998701,1.10482,1810.2,1810.0,1.10486]
[1746401998904,1.10482,1810.2,1810.1,1.10485]
[1746401999091,4.79282,1810.2,1810.1,1.10485]
[1746402000097,3.688,1810.2,1810.1,1.10485]
[1746402000801,3.688,1810.2,1810.1,4.31265]
[1746402001199,4.31241,1810.5,1810.4,1.10467]
[1746402001400,1.10461,1810.5,1810.4,1.10467]
[1746402002105,4.79261,1810.5,1810.4,1.10467]
[1746402002397,6.8958,1810.5,1810.2,2.8573]
[1746402002601,8.00044,1810.5,1810.4,1.10467]
[1746402003606,6.8958,1810.5,1810.4,1.10467]
[1746402003907,3.688,1810.5,1810.4,1.10467]
[1746402004401,4.79261,1810.5,1810.4,1.10467]
[1746402004706,1.10467,1810.4,1810.3,3.79199]
[1746402004899,3.688,1810.5,1810.4,1.10467]
[1746402005097,3.688,1810.5,1810.2,5.61923]
[1746402005298,4.31248,1810.4,1810.3,1.10467]
[1746402005703,3.2078,1810.4,1810.3,1.10467]
[1746402006011,3.688,1810.5,1810.4,1.10467]
[1746402006304,3.2078,1810.6,1810.5,1.10461]
[1746402006705,4.31235,1810.6,1810.5,1.10461]
[1746402007004,3.2078,1810.6,1810.5,1.10461]
[1746402007305,6.8958,1810.6,1810.5,1.10461]
[1746402007699,8.00035,1810.6,1810.5,1.10461]
[1746402008001,1.10473,1810.3,1810.2,3.96205]
[1746402008206,1.10473,1810.3,1810.2,1.10475]
[1746402009009,10.9018,1810.6,1810.3,1.10473]
[1746402009308,4.31235,1810.6,1810.5,1.10461]
[1746402010203,1.10461,1810.5,1810.4,3.83501]
[1746402010506,13.22929,1810.6,1810.5,1.10461]
[1746402011609,12.1247,1810.6,1810.1,2.6873]
[1746402011804,1.10475,1810.3,1810.2,1.10475]
[1746402012199,1.10479,1810.2,1809.8,8.66057]
[1746402012408,1.10487,1810.1,1810.0,1.10488]
[1746402012704,1.10491,1810.1,1810.0,1.1049]
[1746402012904,3.73111,1810.1,1810.0,1.1049]
[1746402013104,7.41911,1810.1,1810.0,1.1049]
[1746402013506,1.10495,1810.0,1809.9,1.10494]
[1746402013900,1.10495,1810.0,1809.8,3.81698]
[1746402013901,1.10497,1809.9,1809.8,3.81698]
[1746402014195,7.39127,1809.9,1809.8,3.81698]
[1746402014506,7.39127,1809.9,1809.8,2.712]
[1746402015002,7.39127,1809.9,1809.8,3.81703]
[1746402015807,7.39127,1809.9,1809.8,2.712]
[1746402016011,4.79297,1809.9,1809.8,3.81703]
[1746402016306,3.688,1809.9,1809.8,3.81703]
[1746402016506,4.79297,1809.9,1809.8,3.81703]
[1746402016708,3.688,1809.9,1809.8,3.81703]
[1746402017510,1.10503,1809.8,1809.7,5.11105]
[1746402017707,1.10503,1809.8,1809.7,7.90005]
[1746402018107,4.79303,1809.8,1809.7,7.90005]
[1746402018704,4.79303,1809.8,1809.7,3.89405]
[1746402018906,1.10522,1809.5,1809.4,7.97843]
[1746402019205,6.8958,1809.5,1809.4,1.49454559]
[1746402019406,3.688,1809.5,1809.4,1.10528]
[1746402019709,1.10528,1809.4,1809.3,1.10529]
[1746402019905,2.7484,1809.4,1809.3,1.10529]
[1746402020108,7.54168,1809.4,1809.3,1.10529]
[1746402020303,9.1169,1809.4,1809.3,3.86129]
[1746402020810,10.22218,1809.4,1809.3,3.86129]
[1746402021109,9.1169,1809.4,1809.3,3.86129]
[1746402021818,6.4364,1809.4,1809.3,3.86129]
[1746402023313,3.688,1809.4,1809.3,3.86129]
[1746402024311,4.79328,1809.4,1809.3,3.86129]
[1746402024516,3.688,1809.4,1809.3,3.86129]
[1746402024905,4.79328,1809.4,1809.3,3.86129]
[1746402025313,9.285,1809.4,1809.3,3.86129]
[1746402025512,1.10539,1809.3,1809.1,3.20447748]
[1746402025711,1.1054,1809.2,1809.1,3.74356]
[1746402025912,1.10552,1809.0,1808.9,5.4169]
[1746402026106,1.10552,1809.0,1808.9,3.84558]
[1746402026311,4.79352,1809.0,1808.9,44.64558]
[1746402026510,10.21032,1809.0,1808.9,43.54]
[1746402027416,1.10565,1808.8,1808.7,14.96625901]
[1746402027611,4.31345,1808.8,1808.7,14.96625901]
[1746402027807,9.31345,1808.8,1808.7,14.96625901]
[1746402028013,11.96335,1808.8,1808.7,14.96625901]
[1746402028309,15.65135,1808.8,1808.7,14.58942208]
[1746402028712,10.65135,1808.8,1808.7,14.58942208]
[1746402029113,1.10583,1808.5,1808.4,3.84589]
[1746402029318,3.2078,1808.5,1808.4,3.84589]
[1746402029509,1.10582,1808.6,1808.5,1.10583]
[1746402029714,3.81492,1808.6,1808.5,1.10583]
[1746402029911,8.30753,1808.7,1808.6,1.10577]
[1746402030112,11.49683,1808.7,1808.6,1.10577]
[1746402030520,10.8898,1808.7,1808.6,1.10577]
[1746402030721,7.682,1808.7,1808.6,1.10577]
[1746402031023,3.688,1808.7,1808.6,1.10577]
[1746402031818,3.688,1808.7,1808.5,2.6466]
[1746402031819,1.10577,1808.6,1808.5,2.6466]
[1746402032024,1.10589,1808.4,1808.3,1.10591]
[1746402032225,3.688,1808.4,1808.3,3.95951]
[1746402033420,4.79389,1808.4,1808.3,2.8536]
[1746402033618,7.39659,1808.4,1808.3,2.8536]
[1746402033926,1.10601,1808.2,1808.1,44.62134]
[1746402034124,1.10613,1808.0,1807.9,4.31395]
[1746402034318,8.483,1808.1,1807.6,20.42215459]
[1746402034618,4.31406,1807.8,1807.7,2.8536]
[1746402035021,4.31406,1807.8,1807.7,3.95992]
[1746402035221,8.00206,1807.8,1807.7,2.8536]
[1746402035422,8.00206,1807.8,1807.7,3.95992]
[1746402035725,3.688,1807.8,1807.7,3.95992]
[1746402040029,1.10638,1807.6,1807.5,1.10644]
[1746402040227,1.10638,1807.6,1807.5,3.72774]
[1746402040423,5.5286,1807.7,1807.5,3.72774]
[1746402040424,2.7856,1807.7,1807.6,1.10638]
[1746402040629,3.89192,1807.7,1807.6,3.72768]
[1746402041126,7.57992,1807.7,1807.6,3.72768]
[1746402041331,7.57992,1807.7,1807.6,2.6213]
[1746402041630,1.10638,1807.6,1807.5,41.90639]
[1746402041927,2.614,1807.6,1807.5,1.10639]
[1746402042228,7.40838,1807.6,1807.5,1.10639]
[1746402042728,6.302,1807.6,1807.5,1.10639]
[1746402042928,6.302,1807.6,1807.5,3.77419]
[1746402043226,7.40838,1807.6,1807.5,3.77419]
[1746402043427,7.40838,1807.6,1807.5,2.6678]
[1746402043623,2.76611,1807.5,1807.0,3.2078]
[1746402043833,3.2078,1807.1,1807.0,1.10675]
[1746402044222,8.00251,1807.1,1806.9,1.10676]
[1746402044423,8.00251,1807.1,1807.0,2.6801]
[1746402044627,8.00251,1807.1,1807.0,3.78685]
[1746402045632,6.8958,1807.1,1807.0,3.78685]
[1746402045829,3.688,1807.1,1807.0,3.78685]
[1746402046231,1.10664,1807.2,1807.1,1.10668]
[1746402046531,9.86591,1807.3,1807.2,1.10662]
[1746402047230,3.2078,1807.5,1807.2,6.10662]
[1746402047532,1.10639,1807.6,1807.3,8.3647]
[1746402047731,3.2078,1807.7,1807.3,8.3647]
[1746402047732,6.96027,1807.7,1807.4,2.7954]
[1746402047932,6.96027,1807.7,1807.5,1.10639]
[1746402047933,4.31417,1807.7,1807.5,1.10639]
[1746402048127,4.31417,1807.7,1807.6,2.7954]
[1746402048535,6.96027,1807.7,1807.6,2.7954]
[1746402049128,10.64827,1807.7,1807.6,2.7954]
[1746402049732,10.64827,1807.7,1807.3,3.96092]
[1746402049930,10.64827,1807.7,1807.3,6.75632]
[1746402049931,1.1065,1807.4,1807.3,6.75632]
[1746402050137,4.7945,1807.4,1807.3,6.75632]
[1746402050331,3.688,1807.4,1807.0,2.8057]
[1746402050533,1.10661,1807.3,1807.2,1.10661]
[1746402050833,3.81011,1807.3,1807.1,2.7564]
[1746402051138,7.49811,1807.3,1807.1,2.7564]
[1746402051338,1.10662,1807.2,1807.1,2.7564]
[1746402051632,3.81012,1807.2,1807.1,2.7564]
[1746402052229,7.49812,1807.2,1807.1,2.7564]
[1746402053040,1.10669,1807.1,1807.0,1.10673]
[1746402053338,3.83229,1807.1,1807.0,3.96383]
[1746402054034,3.83229,1807.1,1807.0,2.8571]
[1746402054236,10.72809,1807.1,1807.0,2.8571]
[1746402055133,1.10675,1807.0,1806.8,1.10681]
[1746402055330,8.0025,1807.1,1807.0,1.10675]
[1746402055938,1.10675,1807.0,1806.8,2.8571]
[1746402056140,1.10681,1806.9,1806.8,3.96392]
[1746402056437,7.04012,1807.1,1807.0,1.10675]
[1746402056938,3.83232,1807.1,1807.0,1.10675]
[1746402057234,7.52032,1807.1,1807.0,1.10675]
[1746402058039,4.79472,1807.1,1807.0,1.10675]
[1746402061344,4.78368914,1807.1,1807.0,1.10675]
[1746402061841,3.688,1807.1,1807.0,4.31455]
[1746402062040,1.59627186,1807.4,1807.3,1.10656]
[1746402062242,3.2078,1807.5,1807.4,1.1065]
[1746402062442,1.10642,1807.6,1807.5,1.10644]
[1746402062942,8.55953186,1807.7,1807.6,1.10638]
[1746402063240,12.24753186,1807.7,1807.6,1.10638]
[1746402063444,6.8958,1807.7,1807.6,1.10638]
[1746402064143,6.8958,1807.7,1807.6,3.79328]
[1746402064337,3.688,1807.7,1807.6,3.79328]
[1746402064536,4.79432,1807.7,1807.6,2.6869]
[1746402064737,4.79432,1807.7,1807.6,3.79328]
[1746402065141,3.688,1807.7,1807.6,3.79328]
[1746402065642,4.79432,1807.7,1807.6,3.79328]
[1746402066142,4.79432,1807.7,1807.6,2.6869]
[1746402066344,7.58612,1807.7,1807.6,2.6869]
[1746402066644,10.79392,1807.7,1807.6,2.6869]
[1746402067243,10.79392,1807.7,1807.6,3.79328]
[1746402067745,3.688,1807.7,1807.6,3.79328]
[1746402068344,3.986,1807.8,1807.7,1.10632]
[1746402068536,3.986,1807.8,1807.7,3.86272]
[1746402068737,1.10626,1807.8,1807.7,2.7564]
[1746402068933,3.84476,1807.8,1807.7,3.86272]
[1746402069339,3.84476,1807.8,1807.7,2.7564]
[1746402069747,3.84476,1807.8,1807.7,3.86272]
[1746402070738,4.31404,1807.9,1807.8,1.10626]
[1746402071045,3.2078,1807.9,1807.8,3.86266]
[1746402071344,3.2078,1807.9,1807.8,6.73526]
[1746402071545,2.5973,1808.0,1807.9,1.1062]
[1746402071739,2.5973,1808.0,1807.9,3.9076]
[1746402071938,3.70343,1808.0,1807.9,6.6496]
[1746402072937,7.94831,1808.1,1808.0,1.10613]
[1746402073142,11.63631,1808.1,1808.0,3.90753]
[1746402073341,11.63631,1808.1,1808.0,2.8014]
[1746402073537,14.24271,1808.1,1808.0,2.8014]
[1746402073748,14.24271,1808.1,1808.0,3.90753]
[1746402074347,14.24271,1808.1,1808.0,2.8014]
[1746402075044,15.90194,1808.1,1807.5,7.1928]
[1746402075247,1.10638,1807.6,1807.5,3.2078]
[1746402075841,1.10638,1807.6,1807.5,6.99444]
[1746402076038,7.43708,1807.6,1807.5,6.99444]
[1746402076248,3.688,1807.6,1807.5,6.99444]
[1746402076749,3.688,1807.6,1807.5,47.79444]
[1746402077145,1.10633,1807.7,1807.6,1.10638]
[1746402077450,1.10633,1807.7,1807.6,2.6802]
[1746402078143,4.79433,1807.7,1807.6,2.6802]
[1746402078648,4.79433,1807.7,1807.6,3.78658]
[1746402081055,4.79433,1807.7,1807.6,2.6802]
[1746402081249,8.00213,1807.7,1807.6,2.6802]
[1746402081550,1.10638,1807.6,1807.5,41.90639]
[1746402081746,6.32958,1807.6,1807.5,40.8]
[1746402081945,1.10644,1807.5,1807.4,2.8673]
[1746402082148,7.41394,1807.5,1807.4,2.8673]
[1746402082545,7.41394,1807.5,1807.4,3.9738]
[1746402083051,7.41394,1807.5,1807.4,2.8673]
[1746402083248,1.1065,1807.4,1807.3,40.8]
[1746402083452,1.10656,1807.3,1807.2,3.9739]
[1746402083849,1.10656,1807.4,1807.3,1.10656]
[1746402084150,1.10656,1807.4,1807.3,3.98406]
[1746402084353,8.00229,1807.5,1807.4,1.1065]
[1746402084551,10.75709,1807.5,1807.4,2.8775]
[1746402084754,10.75709,1807.5,1807.4,3.984]
[1746402086147,10.75709,1807.5,1807.4,2.8775]
[1746402086347,10.75709,1807.5,1807.4,3.984]
[1746402087063,8.00224,1807.5,1807.4,3.984]
[1746402087355,4.79444,1807.5,1807.4,2.8775]
[1746402087553,7.44054,1807.5,1807.4,2.8775]
[1746402087753,7.44054,1807.5,1807.4,3.984]
[1746402088651,10.64834,1807.5,1807.4,3.984]
[1746402089260,8.00224,1807.5,1807.4,3.984]
[1746402090057,1.10662,1807.3,1807.2,1.10659]
[1746402090254,1.10662,1807.2,1807.1,2.6272]
[1746402090556,1.10662,1807.2,1807.1,41.90669]
[1746402091455,1.10662,1807.2,1807.1,3.90339]
[1746402091655,6.61222,1807.2,1807.1,3.90339]
[1746402092556,5.5056,1807.2,1807.1,3.90339]
[1746402092757,3.97952,1807.2,1807.1,3.90339]
[1746402093258,3.97952,1807.2,1807.1,2.7967]
[1746402093558,3.97952,1807.2,1807.1,3.90339]
[1746402094958,2.8729,1807.2,1807.1,3.90339]
[1746402095554,3.97952,1807.2,1807.1,3.90339]
[1746402095754,2.8729,1807.2,1807.1,3.90339]
[1746402096254,7.06422,1807.3,1807.2,1.10662]
[1746402096455,7.06422,1807.3,1807.2,3.77612]
[1746402096661,5.9576,1807.3,1807.2,3.77612]
[1746402096960,3.2078,1807.3,1807.2,3.77612]
[1746402097161,6.8958,1807.3,1807.2,3.77612]
[1746402097361,3.688,1807.3,1807.2,3.77612]
[1746402098259,3.94111,1807.4,1807.3,1.10656]
[1746402098458,3.94111,1807.4,1807.3,3.77606]
[1746402098654,6.77791,1807.4,1807.3,2.6695]
[1746402098859,1.10662,1807.2,1807.1,2.6695]
[1746402099066,1.10662,1807.2,1807.1,3.77619]
[1746402100370,3.76102,1807.2,1807.1,3.77619]
[1746402101067,7.44902,1807.2,1807.1,3.77619]
[1746402101673,2.76686,1807.1,1806.7,16.87791442]
[1746402101864,6.9892,1807.0,1806.9,3.77388]
[1746402102076,6.98915,1807.0,1806.9,3.77388]
[1746402102368,3.2078,1807.0,1806.9,3.77388]
[1746402102972,1.1067,1807.1,1807.0,1.10675]
[1746402103163,8.5731,1807.2,1807.0,3.93815]
[1746402103366,9.67977,1807.2,1807.1,1.10669]
[1746402103576,9.67977,1807.2,1807.1,3.93809]
[1746402104171,13.36777,1807.2,1807.1,2.8314]
[1746402104873,13.36777,1807.2,1807.1,3.93809]
[1746402105472,1.10678,1807.0,1806.8,43.56708]
[1746402105668,1.10678,1807.0,1806.9,2.8711]
[1746402106674,1.10678,1807.0,1806.9,3.97786]
[1746402108170,6.91165,1807.2,1807.1,1.10669]
[1746402108369,3.2078,1807.2,1807.1,1.10669]
[1746402108575,4.31442,1807.2,1807.1,1.10669]
[1746402108876,1.10669,1807.1,1807.0,2.618]
[1746402109069,7.46339,1807.1,1807.0,2.618]
[1746402110175,7.46339,1807.1,1807.0,3.72475]
[1746402110577,4.79469,1807.1,1807.0,3.72475]